[Event "46th GRE-chT Premier 2018"]
[Site "Rio Achaia"]
[Date "2018.07.11"]
[Round "2"]
[White "Petraki, Evaggelia"]
[Black "Stellaki, Alexandra"]
[Result "1-0"]
[ECO "B13"]
[WhiteElo "1814"]
[BlackElo "1241"]
[Annotator "NA"]
[PlyCount "125"]
[EventDate "2018.07.10"]
[EventType "team-tourn"]
[EventCountry "GRE"]
[SourceTitle "playchess.com"]
[Source "ChessBase"]
[SourceQuality "1"]
[TimeControl "40/5400+30:1800+30"]

1. e4 {[%emt 0:00:00]} c6 {[%emt 0:00:25]} 2. d4 {[%emt 0:00:28]} d5 {[%emt 0:00:51]} 3. exd5 {[%emt 0:00:29]} cxd5 {[%emt 0:00:19]} 4. Bd3 {[%emt 0:00:10]} Nc6 {[%emt 0:01:32]} 5. c3 {[%emt 0:00:13]} Nf6 {[%emt 0:01:45]} 6. h3 {[%emt 0:00:26]} e6 {[%emt 0:00:44]} 7. Nf3 {[%emt 0:01:03]} Be7 {[%emt 0:04:13]} 8. Bf4 {[%emt 0:04:41]} O-O {[%emt 0:03:33]} 9. O-O {[%emt 0:00:36]} h6 {[%emt 0:04:03]} 10. Re1 {[%emt 0:01:39]} Bd6 {[%emt 0:02:54]} 11. Bxd6 {[%emt 0:01:13]} Qxd6 {[%emt 0:00:00]} 12. Nbd2 {[%emt 0:00:08]} a5 {[%emt 0:07:01]} 13. a4 {[%emt 0:02:04]} b6 {[%emt 0:00:49]} 14. Ne5 {[%emt 0:14:34]} Nd7 {[%emt 0:03:24]} 15. f4 {[%emt 0:03:22]} Ba6 {[%emt 0:02:22]} 16. Ndf3 {[%emt 0:11:47]} Bxd3 {[%emt 0:01:23]} 17. Qxd3 {[%emt 0:00:06]} Ne7 {[%emt 0:08:51]} 18. Nxd7 {[%emt 0:08:31]} Qxd7 {[%emt 0:00:29]} 19. Ne5 {[%emt 0:00:15]} Qb7 {[%emt 0:07:05]} 20. Qb5 {[%emt 0:01:53]} Rad8 {[%emt 0:04:03]} 21. Rab1 {[%emt 0:01:51]} Nc8 {[%emt 0:01:32]} 22. b4 {[%emt 0:06:46]} Nd6 {[%emt 0:05:44]} 23. Qd3 {[%emt 0:05:06]} Qc7 {[%emt 0:01:42]} 24. Rec1 {[%emt 0:10:33]} Nc4 {[%emt 0:04:45]} 25. Nxc4 {[%emt 0:01:54]} dxc4 {[%emt 0:01:40]} 26. Qe4 {[%emt 0:00:13]} axb4 {[%emt 0:01:26]} 27. Rxb4 {[%emt 0:00:17]} Rd5 {[%emt 0:01:36]} 28. g3 {[%emt 0:03:57]} Rc8 {[%emt 0:16:20]} 29. Rcb1 {[%emt 0:02:54]} Ra5 {[%emt 0:03:02]} 30. Qc2 {[%emt 0:03:28]} Rb8 {[%emt 0:05:32]} 31. Kh2 {[%emt 0:05:31]} Qc6 {[%emt 0:02:00]} 32. Qg2 {[%emt 0:01:11]} Qc7 {[%emt 0:01:42]} 33. Qa2 {[%emt 0:00:47]} b5 {[%emt 0:01:30]} 34. Rxb5 {[%emt 0:00:45]} Rbxb5 {[%emt 0:00:31]} 35. Rxb5 {[%emt 0:00:04]} Ra6 {[%emt 0:01:15]} 36. Rc5 {[%emt 0:01:59]} Rc6 {[%emt 0:01:10]} 37. Qxc4 {[%emt 0:01:05]} Rxc5 {[%emt 0:00:24]} 38. Qxc5 {[%emt 0:00:05]} Qb7 {[%emt 0:00:16]} 39. Qb5 {[%emt 0:01:16]} Qf3 {[%emt 0:00:27]} 40. Qb2 {[%emt 0:00:00]} Qd3 {[%emt 0:00:00]} 41. a5 {[%emt 0:07:08]} Qa6 {[%emt 0:02:22]} 42. Qa2 {[%emt 0:01:21]} Kf8 {[%emt 0:00:25]} 43. c4 {[%emt 0:00:17]} Ke8 {[%emt 0:00:28]} 44. Qa4+ {[%emt 0:00:38]} Kd8 {[%emt 0:01:35]} 45. Qb5 {[%emt 0:00:09]} Qa8 {[%emt 0:00:30]} 46. a6 {[%emt 0:01:18]} Qe4 {[%emt 0:01:19]} 47. Qb8+ {[%emt 0:00:09]} Kd7 {[%emt 0:01:01]} 48. Qb7+ {[%emt 0:00:04]} Qxb7 {[%emt 0:00:15]} 49. axb7 {[%emt 0:00:03]} Kc7 {[%emt 0:00:22]} 50. Kg2 {[%emt 0:02:05]} Kxb7 {[%emt 0:00:12]} 51. Kf3 {[%emt 0:00:12]} Kc6 {[%emt 0:00:19]} 52. Ke4 {[%emt 0:01:36]} f6 {[%emt 0:00:45]} 53. f5 {[%emt 0:00:20]} Kd6 {[%emt 0:02:15]} 54. c5+ {[%emt 0:00:44]} Kd7 {[%emt 0:01:11]} 55. fxe6+ {[%emt 0:00:17]} Kxe6 {[%emt 0:00:26]} 56. d5+ {[%emt 0:00:09]} Kd7 {[%emt 0:01:11]} 57. Kf5 {[%emt 0:00:07]} Kd8 {[%emt 0:02:53]} 58. Ke6 {[%emt 0:00:25]} h5 {[%emt 0:00:35]} 59. d6 {[%emt 0:00:22]} g5 {[%emt 0:01:28]} 60. c6 {[%emt 0:00:17]} h4 {[%emt 0:01:10]} 61. gxh4 {[%emt 0:00:10]} gxh4 {[%emt 0:00:11]} 62. d7 {[%emt 0:00:16]} f5 {[%emt 0:01:34]} 63. Kd6 {[%emt 0:00:27]} 1-0

[Event "46th GRE-chT Premier 2018"]
[Site "Rio Achaia"]
[Date "2018.07.11"]
[Round "2"]
[White "Georgitsi, Antigoni"]
[Black "Bouza, Mirto - Eleni"]
[Result "1-0"]
[ECO "A20"]
[WhiteElo "1811"]
[BlackElo "1299"]
[Annotator "NA"]
[PlyCount "65"]
[EventDate "2018.07.10"]
[EventType "team-tourn"]
[EventCountry "GRE"]
[SourceTitle "playchess.com"]
[Source "ChessBase"]
[SourceQuality "1"]
[TimeControl "40/5400+30:1800+30"]

1. c4 {[%emt 0:01:34]} e5 {[%emt 0:00:00]} 2. g3 {[%emt 0:00:06]} Nf6 {[%emt 0:00:09]} 3. Bg2 {[%emt 0:00:07]} Nc6 {[%emt 0:03:34]} 4. Nc3 {[%emt 0:02:03]} d6 {[%emt 0:03:55]} 5. d3 {[%emt 0:03:02]} Ne7 {[%emt 0:08:19]} 6. Bg5 {[%emt 0:06:11]} Ng6 {[%emt 0:01:29]} 7. Nd5 {[%emt 0:04:42]} Be7 {[%emt 0:01:20]} 8. Nxe7 {[%emt 0:02:46]} Qxe7 {[%emt 0:00:21]} 9. Nf3 {[%emt 0:01:49]} O-O {[%emt 0:01:38]} 10. O-O {[%emt 0:02:27]} h6 {[%emt 0:01:34]} 11. Bd2 {[%emt 0:00:39]} c6 {[%emt 0:01:26]} 12. Bc3 {[%emt 0:03:04]} Re8 {[%emt 0:09:45]} 13. Qc2 {[%emt 0:08:46]} d5 {[%emt 0:08:19]} 14. cxd5 {[%emt 0:02:43]} cxd5 {[%emt 0:09:16]} 15. Rfd1 {[%emt 0:04:03]} Bd7 {[%emt 0:05:07]} 16. d4 {[%emt 0:02:58]} e4 {[%emt 0:06:05]} 17. Ne5 {[%emt 0:01:02]} Nxe5 {[%emt 0:01:57]} 18. dxe5 {[%emt 0:00:19]} Ng4 {[%emt 0:00:58]} 19. Rxd5 {[%emt 0:06:33]} Bc6 {[%emt 0:01:53]} 20. Rd4 {[%emt 0:04:48]} Qxe5 {[%emt 0:10:03]} 21. h3 {[%emt 0:20:37]} Nf6 {[%emt 0:01:43]} 22. e3 {[%emt 0:05:28]} Qe6 {[%emt 0:03:37]} 23. a4 {[%emt 0:03:41]} Bd5 {[%emt 0:06:27]} 24. Qd2 {[%emt 0:01:38]} Rac8 {[%emt 0:00:45]} 25. Rd1 {[%emt 0:01:05]} Bb3 {[%emt 0:03:03]} 26. Rc1 {[%emt 0:03:24]} Nd5 {[%emt 0:02:02]} 27. Rxe4 {[%emt 0:01:45]} Qd7 {[%emt 0:03:40]} 28. Rd4 {[%emt 0:02:09]} Red8 {[%emt 0:04:36]} 29. e4 {[%emt 0:01:31]} Rc5 {[%emt 0:00:27]} 30. exd5 {[%emt 0:00:32]} b6 {[%emt 0:00:49]} 31. Rg4 {[%emt 0:01:55]} g6 {[%emt 0:00:36]} 32. Qd4 {[%emt 0:00:43]} f6 {[%emt 0:00:30]} 33. Rxg6+ {[%emt 0:00:40]} 1-0

[Event "46th GRE-chT Premier 2018"]
[Site "Rio Achaia"]
[Date "2018.07.11"]
[Round "2"]
[White "Stoumbou, Eleni"]
[Black "Maisuradze, Nino"]
[Result "0-1"]
[ECO "B42"]
[WhiteElo "1811"]
[BlackElo "2264"]
[Annotator "NA"]
[PlyCount "66"]
[EventDate "2018.07.10"]
[EventType "team-tourn"]
[EventCountry "GRE"]
[SourceTitle "playchess.com"]
[Source "ChessBase"]
[SourceQuality "1"]
[TimeControl "40/5400+30:1800+30"]

1. e4 {[%emt 0:00:00]} c5 {[%emt 0:00:00]} 2. Nf3 {[%emt 0:00:00]} e6 {[%emt 0:00:00]} 3. d4 {[%emt 0:00:05]} cxd4 {[%emt 0:00:00]} 4. Nxd4 {[%emt 0:00:06]} a6 {[%emt 0:00:30]} 5. Bd3 {[%emt 0:05:19]} Nc6 {[%emt 0:01:40]} 6. Be3 {[%emt 0:01:20]} Nf6 {[%emt 0:10:02]} 7. O-O {[%emt 0:10:20]} Qc7 {[%emt 0:06:16]} 8. c4 {[%emt 0:16:49]} Bd6 $14 {[%emt 0:03:29] LiveBook: 3 Games} 9. h3 {[%emt 0:09:24]} Be5 {[%emt 0:04:49]} 10. Bc2 {[%emt 0:07:52]} b5 {[%emt 0:06:18]} 11. c5 {[%emt 0:11:29]} Bb7 {[%emt 0:05:48]} 12. Nc3 {[%emt 0:14:24]} Nxd4 {[%emt 0:12:13]} 13. Bxd4 {[%emt 0:00:13]} Rc8 {[%emt 0:01:47]} 14. b4 {[%emt 0:07:41]} Bxd4 {[%emt 0:01:35]} 15. Qxd4 {[%emt 0:00:06]} d6 {[%emt 0:00:48]} 16. e5 {[%emt 0:04:47]} dxc5 {[%emt 0:04:48]} 17. bxc5 {[%emt 0:02:28]} Qxc5 {[%emt 0:27:19]} 18. Qxc5 {[%emt 0:00:24]} Rxc5 {[%emt 0:00:00]} 19. exf6 {[%emt 0:01:18]} Rxc3 {[%emt 0:00:00]} 20. fxg7 {[%emt 0:00:32]} Rg8 {[%emt 0:00:00]} 21. Rac1 {[%emt 0:01:44]} Rxg7 {[%emt 0:08:52]} 22. g3 {[%emt 0:02:55]} Rg5 23. Bxh7 {[%emt 0:00:05]} Rxc1 {[%emt 0:01:10]} 24. Rxc1 {[%emt 0:00:33]} Rh5 25. Rc7 Bf3 {[%emt 0:01:54]} 26. Rc3 {[%emt 0:01:05]} Bd5 27. Bc2 {[%emt 0:01:17]} Rxh3 {[%emt 0:00:33]} 28. f4 b4 {[%emt 0:02:08]} 29. Rc7 {[%emt 0:01:10]} Kd8 {[%emt 0:00:52]} 30. Rc5 {[%emt 0:00:37]} Rxg3+ {[%emt 0:00:04]} 31. Kf2 {[%emt 0:00:25]} Rf3+ {[%emt 0:00:33]} 32. Ke2 {[%emt 0:00:21]} Rxf4 {[%emt 0:00:12]} 33. Ke3 {[%emt 0:00:29]} Rc4 {[%emt 0:00:19] Kd4} 0-1

[Event "46th GRE-chT Premier 2018"]
[Site "Rio Achaia"]
[Date "2018.07.11"]
[Round "2"]
[White "Liapi Zenebisi, Irini"]
[Black "Zacharia, Aikaterini-Eirini"]
[Result "1-0"]
[ECO "A40"]
[WhiteElo "1788"]
[BlackElo "1234"]
[Annotator "NA"]
[PlyCount "81"]
[EventDate "2018.07.10"]
[EventType "team-tourn"]
[EventCountry "GRE"]
[SourceTitle "playchess.com"]
[Source "ChessBase"]
[SourceQuality "1"]
[TimeControl "40/5400+30:1800+30"]

1. d4 {[%emt 0:00:00]} Nf6 {[%emt 0:00:00]} 2. c4 {[%emt 0:00:00]} e6 {[%emt 0:00:00]} 3. g3 {[%emt 0:00:00]} d5 {[%emt 0:00:27]} 4. Nf3 {[%emt 0:00:00]} Bb4+ {[%emt 0:00:25]} 5. Bd2 {[%emt 0:00:06]} Bd6 {[%emt 0:00:10]} 6. Bg2 {[%emt 0:00:16]} O-O {[%emt 0:00:55]} 7. Qc2 {[%emt 0:00:16]} c6 {[%emt 0:01:11]} 8. O-O {[%emt 0:00:28]} Nbd7 {[%emt 0:00:52]} 9. Rd1 {[%emt 0:03:38]} Ne4 {[%emt 0:05:04]} 10. Bc1 {[%emt 0:01:13]} f5 {[%emt 0:06:16]} 11. Bf4 {[%emt 0:01:33]} Bxf4 {[%emt 0:09:45]} 12. gxf4 {[%emt 0:00:05]} Qf6 {[%emt 0:04:25]} 13. Nc3 {[%emt 0:07:13]} Qh6 {[%emt 0:17:04]} 14. e3 {[%emt 0:00:42]} Ndf6 {[%emt 0:01:41]} 15. Ne5 {[%emt 0:01:56]} Kh8 {[%emt 0:15:48]} 16. f3 {[%emt 0:08:54]} Nd6 {[%emt 0:05:18]} 17. Qe2 {[%emt 0:06:18]} Nf7 {[%emt 0:01:43]} 18. b4 {[%emt 0:07:04]} Nxe5 {[%emt 0:03:24]} 19. fxe5 {[%emt 0:03:53]} Nh5 {[%emt 0:01:48]} 20. Re1 {[%emt 0:06:42]} f4 {[%emt 0:04:41]} 21. e4 {[%emt 0:01:08]} dxc4 {[%emt 0:02:00]} 22. Qxc4 {[%emt 0:01:23]} g5 {[%emt 0:02:21]} 23. Qe2 {[%emt 0:04:47]} Bd7 {[%emt 0:01:46]} 24. Na4 {[%emt 0:03:22]} b6 {[%emt 0:01:33]} 25. Nb2 {[%emt 0:00:31]} b5 {[%emt 0:01:05]} 26. Nd3 {[%emt 0:00:33]} Qg7 {[%emt 0:02:32]} 27. Nc5 {[%emt 0:00:38]} Rg8 {[%emt 0:01:12]} 28. Rad1 {[%emt 0:04:53]} Rad8 {[%emt 0:02:46]} 29. Nb7 {[%emt 0:07:07]} Rb8 {[%emt 0:00:22]} 30. Nd6 {[%emt 0:00:20]} g4 {[%emt 0:00:42]} 31. fxg4 {[%emt 0:00:08]} Rbf8 {[%emt 0:04:27]} 32. Bf3 {[%emt 0:03:42]} Qg5 {[%emt 0:02:07]} 33. Kh1 {[%emt 0:02:45]} Ng7 {[%emt 0:00:19]} 34. Rg1 {[%emt 0:01:43]} Ne8 {[%emt 0:00:49]} 35. Nb7 {[%emt 0:02:03]} Nc7 {[%emt 0:01:50]} 36. Nc5 {[%emt 0:00:38]} Bc8 {[%emt 0:00:29]} 37. Qb2 {[%emt 0:02:01]} Qe7 {[%emt 0:00:28]} 38. Qa3 {[%emt 0:03:52]} Ne8 {[%emt 0:00:32]} 39. Qc3 {[%emt 0:02:44]} Bd7 {[%emt 0:00:36]} 40. d5 {[%emt 0:00:00]} exd5 {[%emt 0:00:00]} 41. e6+ {[%emt 0:02:04]} 1-0

[Event "46th GRE-chT Premier 2018"]
[Site "Rio Achaia"]
[Date "2018.07.11"]
[Round "2"]
[White "Stamatis, Ioannis"]
[Black "Brokalakis - Gounaris, Christos"]
[Result "0-1"]
[ECO "E01"]
[WhiteElo "1777"]
[BlackElo "1901"]
[Annotator "NA"]
[PlyCount "88"]
[EventDate "2018.07.10"]
[EventType "team-tourn"]
[EventCountry "GRE"]
[SourceTitle "playchess.com"]
[Source "ChessBase"]
[SourceQuality "1"]
[TimeControl "40/5400+30:1800+30"]

1. d4 {[%emt 0:00:00]} Nf6 {[%emt 0:00:34]} 2. c4 {[%emt 0:00:00]} e6 {[%emt 0:00:19]} 3. g3 {[%emt 0:00:00]} d5 {[%emt 0:00:27]} 4. Bg2 {[%emt 0:00:01]} Bb4+ {[%emt 0:01:20]} 5. Bd2 {[%emt 0:00:11]} Bd6 {[%emt 0:00:58]} 6. Nf3 {[%emt 0:00:46]} c6 {[%emt 0:00:37]} 7. Qc2 {[%emt 0:00:06]} Nbd7 {[%emt 0:00:25]} 8. Bg5 {[%emt 0:01:14]} h6 {[%emt 0:02:30]} 9. Bxf6 {[%emt 0:00:11]} Qxf6 {[%emt 0:04:45]} 10. Nbd2 {[%emt 0:01:11]} O-O {[%emt 0:06:28]} 11. O-O {[%emt 0:00:56]} Re8 {[%emt 0:10:39]} 12. e4 {[%emt 0:02:33]} dxe4 {[%emt 0:03:02]} 13. Nxe4 {[%emt 0:00:48]} Qe7 {[%emt 0:00:09]} 14. Nxd6 {[%emt 0:14:12]} Qxd6 {[%emt 0:00:23]} 15. Rfd1 {[%emt 0:03:51]} Qc7 {[%emt 0:07:27]} 16. Rd3 {[%emt 0:23:23]} c5 {[%emt 0:07:01]} 17. d5 {[%emt 0:16:08]} exd5 {[%emt 0:01:39]} 18. cxd5 {[%emt 0:01:09]} Qd6 {[%emt 0:11:24]} 19. Nd2 {[%emt 0:10:11]} Qg6 {[%emt 0:04:09]} 20. Rc3 {[%emt 0:03:59]} Qxc2 {[%emt 0:03:13]} 21. Rxc2 {[%emt 0:00:01]} b6 {[%emt 0:00:50]} 22. Ne4 {[%emt 0:06:58]} Ba6 {[%emt 0:02:10]} 23. Nd6 {[%emt 0:02:42]} Red8 {[%emt 0:01:48]} 24. b4 {[%emt 0:01:09]} cxb4 {[%emt 0:13:11]} 25. Rc7 {[%emt 0:00:42]} Ne5 {[%emt 0:01:01]} 26. Nf5 {[%emt 0:00:42]} Bb5 {[%emt 0:10:10]} 27. Re1 {[%emt 0:01:26]} Ng6 {[%emt 0:03:31]} 28. h4 {[%emt 0:00:54]} Rd7 {[%emt 0:01:38]} 29. d6 {[%emt 0:01:01]} Rad8 {[%emt 0:00:06]} 30. h5 {[%emt 0:01:01]} Nf8 {[%emt 0:00:44]} 31. Bd5 {[%emt 0:05:28]} a5 {[%emt 0:01:47]} 32. Re7 {[%emt 0:00:39]} Ne6 {[%emt 0:00:40]} 33. Bxe6 {[%emt 0:00:33]} fxe6 {[%emt 0:00:03]} 34. Nd4 {[%emt 0:00:47]} Rxe7 {[%emt 0:00:58]} 35. dxe7 {[%emt 0:00:15]} Rxd4 {[%emt 0:00:42]} 36. Rb7 {[%emt 0:01:20]} Be8 {[%emt 0:00:38]} 37. Rxb6 {[%emt 0:00:22]} Kf7 {[%emt 0:00:32]} 38. Ra6 {[%emt 0:00:35]} a4 {[%emt 0:00:29]} 39. Ra7 {[%emt 0:00:28]} Rd7 {[%emt 0:00:31]} 40. Ra5 {[%emt 0:00:00]} Kxe7 {[%emt 0:00:00]} 41. Kg2 {[%emt 0:00:51]} b3 {[%emt 0:00:19]} 42. Rxa4 {[%emt 0:00:53]} Rb7 {[%emt 0:00:28]} 43. Rg4 {[%emt 0:00:29]} b2 {[%emt 0:00:10]} 44. Rxg7+ {[%emt 0:00:11]} Bf7 {[%emt 0:00:04]} 0-1

[Event "46th GRE-chT Premier 2018"]
[Site "Rio Achaia"]
[Date "2018.07.11"]
[Round "2"]
[White "Karavitaki, Evaggelia"]
[Black "Kouta, Antonia"]
[Result "1-0"]
[ECO "B85"]
[WhiteElo "1723"]
[BlackElo "1703"]
[Annotator "NA"]
[PlyCount "129"]
[EventDate "2018.07.10"]
[EventType "team-tourn"]
[EventCountry "GRE"]
[SourceTitle "playchess.com"]
[Source "ChessBase"]
[SourceQuality "1"]
[TimeControl "40/5400+30:1800+30"]

1. e4 c5 2. Nf3 e6 3. d4 cxd4 4. Nxd4 Nf6 5. Nc3 d6 6. Be2 a6 7. O-O Nbd7 8. f4 b5 9. a3 Bb7 10. Bd3 Be7 11. Kh1 h5 12. Qe2 Qc7 13. Nf3 Ng4 14. Bd2 Rc8 15. Rae1 Nc5 16. Nd4 Bh4 17. Rd1 Bf6 18. Nf3 Nxd3 19. cxd3 Qb6 20. Rde1 O-O 21. h3 Nh6 22. Be3 Qd8 23. d4 Be7 24. Qf2 a5 25. Ng5 b4 26. axb4 axb4 27. Ne2 Rc2 28. Qf3 g6 29. Qg3 Kg7 30. f5 {[%emt 1:37:26]} exf5 {[%emt 1:40:28]} 31. exf5 {[%emt 0:00:10]} Bc8 {[%emt 0:00:52]} 32. Nxf7 {[%emt 0:04:03]} Nxf5 {[%emt 0:02:54]} 33. Rxf5 {[%emt 0:01:03]} Rxf7 {[%emt 0:00:08]} 34. Bh6+ {[%emt 0:01:15]} Kxh6 {[%emt 0:00:11]} 35. Rxf7 {[%emt 0:00:08]} Bh4 {[%emt 0:00:51]} 36. Qe3+ {[%emt 0:00:32]} Bg5 {[%emt 0:01:05]} 37. Nf4 {[%emt 0:02:32]} Qg8 {[%emt 0:01:11]} 38. Qe8 {[%emt 0:00:39]} Qxe8 {[%emt 0:00:10]} 39. Rxe8 {[%emt 0:00:02]} Bxf4 {[%emt 0:00:39]} 40. Rxf4 {[%emt 0:00:00]} Bb7 {[%emt 0:00:00]} 41. Kg1 {[%emt 0:24:07]} Rxg2+ {[%emt 0:12:03]} 42. Kf1 {[%emt 0:00:06]} Kg5 {[%emt 0:01:44]} 43. Rf2 {[%emt 0:02:07]} Rg3 {[%emt 0:08:26]} 44. Rh2 {[%emt 0:01:29]} Kf6 {[%emt 0:03:40]} 45. h4 {[%emt 0:03:05]} Kf7 {[%emt 0:00:41]} 46. Rb8 {[%emt 0:00:33]} Ba6+ {[%emt 0:00:20]} 47. Kf2 {[%emt 0:01:11]} Rb3 {[%emt 0:00:47]} 48. Ke1 {[%emt 0:00:33]} Ke6 {[%emt 0:02:05]} 49. Rb6 {[%emt 0:01:01]} Bc4 {[%emt 0:01:26]} 50. Rg2 {[%emt 0:01:06]} Re3+ {[%emt 0:01:32]} 51. Kf2 {[%emt 0:01:04]} Re2+ {[%emt 0:03:07]} 52. Kg1 {[%emt 0:00:11]} Rxg2+ {[%emt 0:00:23]} 53. Kxg2 {[%emt 0:00:02]} b3 {[%emt 0:00:07]} 54. Kf3 {[%emt 0:00:28]} Kd5 {[%emt 0:00:53]} 55. Ke3 {[%emt 0:00:09]} Ke6 {[%emt 0:00:13]} 56. Ke4 {[%emt 0:00:31]} Bd5+ {[%emt 0:00:35]} 57. Kf4 {[%emt 0:00:24]} Bc4 {[%emt 0:01:05]} 58. Kg5 {[%emt 0:00:32]} Kd5 {[%emt 0:00:26]} 59. Kxg6 {[%emt 0:00:17]} Kxd4 {[%emt 0:00:10]} 60. Rxd6+ {[%emt 0:00:14]} Ke5 {[%emt 0:00:51]} 61. Rd2 {[%emt 0:00:43]} Be6 {[%emt 0:00:41]} 62. Kxh5 {[%emt 0:00:12]} Kf6 {[%emt 0:00:20]} 63. Rd6 {[%emt 0:01:15]} Ke7 {[%emt 0:00:07]} 64. Rxe6+ {[%emt 0:00:39]} Kxe6 {[%emt 0:00:06]} 65. Kg6 {[%emt 0:00:05]} 1-0

[Event "46th GRE-chT Premier 2018"]
[Site "Rio Achaia"]
[Date "2018.07.11"]
[Round "2"]
[White "Rousos, Stamatios"]
[Black "Blitsas, Orestis"]
[Result "1-0"]
[ECO "C10"]
[WhiteElo "1700"]
[BlackElo "1584"]
[Annotator "NA"]
[PlyCount "67"]
[EventDate "2018.07.10"]
[EventType "team-tourn"]
[EventCountry "GRE"]
[SourceTitle "playchess.com"]
[Source "ChessBase"]
[SourceQuality "1"]
[TimeControl "40/5400+30:1800+30"]

1. e4 {[%emt 0:00:05]} e6 {[%emt 0:00:00]} 2. d4 {[%emt 0:00:36]} d5 {[%emt 0:00:00]} 3. Nc3 {[%emt 0:01:26]} dxe4 {[%emt 0:00:12]} 4. Nxe4 {[%emt 0:00:08]} Nd7 {[%emt 0:00:02]} 5. Nf3 {[%emt 0:02:15]} Ngf6 {[%emt 0:00:06]} 6. Nxf6+ {[%emt 0:03:30]} Nxf6 {[%emt 0:00:07]} 7. Bd3 {[%emt 0:00:30]} c5 {[%emt 0:08:42]} 8. O-O {[%emt 0:08:11]} Be7 {[%emt 0:10:48]} 9. c3 {[%emt 0:09:48]} Bd7 {[%emt 0:04:04]} 10. Ne5 {[%emt 0:08:26]} cxd4 {[%emt 0:09:44]} 11. cxd4 {[%emt 0:00:06]} Rc8 {[%emt 0:00:10]} 12. Qf3 {[%emt 0:06:42]} Bc6 {[%emt 0:11:52]} 13. Nxc6 {[%emt 0:00:09]} bxc6 {[%emt 0:00:14]} 14. Ba6 Rc7 {[%emt 0:08:56]} 15. Bf4 {[%emt 0:06:23]} Bd6 {[%emt 0:00:40]} 16. Bd2 {[%emt 0:05:55]} Nd5 {[%emt 0:00:58]} 17. Ba5 {[%emt 0:00:16]} Nb6 {[%emt 0:00:40]} 18. Rac1 {[%emt 0:00:12]} Qf6 {[%emt 0:09:48]} 19. Qxf6 {[%emt 0:05:53]} gxf6 {[%emt 0:00:05]} 20. Rc3 {[%emt 0:00:26]} Rg8 {[%emt 0:02:52]} 21. Rfc1 {[%emt 0:04:14]} Kd7 {[%emt 0:02:15]} 22. Rh3 {[%emt 0:00:40]} h6 {[%emt 0:05:47]} 23. Bd2 {[%emt 0:02:41]} c5 {[%emt 0:01:35]} 24. dxc5 {[%emt 0:00:47]} Bxc5 {[%emt 0:00:14]} 25. b4 {[%emt 0:00:53]} Bd6 {[%emt 0:00:39]} 26. Rxc7+ {[%emt 0:00:29]} Kxc7 {[%emt 0:01:03]} 27. Rxh6 {[%emt 0:00:15]} Rg4 {[%emt 0:00:38]} 28. Rxf6 {[%emt 0:01:03]} Rd4 {[%emt 0:00:15]} 29. Rxf7+ {[%emt 0:00:08]} Kc6 {[%emt 0:13:31]} 30. Bc3 {[%emt 0:02:22]} Rd1+ {[%emt 0:00:51]} 31. Bf1 {[%emt 0:00:05]} Nd5 {[%emt 0:00:13]} 32. b5+ {[%emt 0:03:21]} Kc5 {[%emt 0:00:37]} 33. Bg7 {[%emt 0:00:35]} Nf4 {[%emt 0:00:17]} 34. g3 {[%emt 0:00:19]} 1-0

[Event "46th GRE-chT Premier 2018"]
[Site "Rio Achaia"]
[Date "2018.07.11"]
[Round "2"]
[White "Markaki, Sofia"]
[Black "Szczepkowska, Karina"]
[Result "0-1"]
[ECO "C45"]
[WhiteElo "1694"]
[BlackElo "2396"]
[Annotator "NA"]
[PlyCount "86"]
[EventDate "2018.07.10"]
[EventType "team-tourn"]
[EventCountry "GRE"]
[SourceTitle "playchess.com"]
[Source "ChessBase"]
[SourceQuality "1"]
[TimeControl "40/5400+30:1800+30"]

1. e4 {[%emt 0:00:00]} e5 {[%emt 0:00:00]} 2. Nf3 {[%emt 0:00:00]} Nc6 {[%emt 0:00:00]} 3. d4 {[%emt 0:00:00]} exd4 {[%emt 0:00:00]} 4. Nxd4 {[%emt 0:00:00]} Nf6 {[%emt 0:00:00]} 5. Nxc6 {[%emt 0:00:00]} bxc6 {[%emt 0:00:00]} 6. e5 {[%emt 0:00:00]} Qe7 {[%emt 0:00:00]} 7. Qe2 {[%emt 0:00:06]} Nd5 {[%emt 0:00:00]} 8. c4 {[%emt 0:00:06]} Ba6 {[%emt 0:00:14]} 9. b3 {[%emt 0:02:07]} g6 {[%emt 0:00:26]} 10. f4 {[%emt 0:02:33]} d6 {[%emt 0:03:01]} 11. Qf2 {[%emt 0:13:16]} Nf6 {[%emt 0:00:26]} 12. Bb2 {[%emt 0:11:08]} dxe5 {[%emt 0:07:04]} 13. fxe5 {[%emt 0:02:06]} Nd7 {[%emt 0:03:36]} 14. Nd2 {[%emt 0:01:13]} Bg7 {[%emt 0:02:53]} 15. O-O-O {[%emt 0:03:27]} O-O {[%emt 0:02:24]} 16. Nf3 {[%emt 0:05:12]} c5 {[%emt 0:03:32]} 17. Bd3 {[%emt 0:08:46]} Bb7 {[%emt 0:03:28]} 18. Rhe1 {[%emt 0:03:06]} a5 {[%emt 0:00:08]} 19. Be4 {[%emt 0:07:14]} Bxe4 {[%emt 0:03:06]} 20. Rxe4 {[%emt 0:00:05]} Rfe8 {[%emt 0:03:51]} 21. Kc2 {[%emt 0:08:15]} a4 {[%emt 0:02:41]} 22. Re3 {[%emt 0:04:00]} Nf8 {[%emt 0:04:28]} 23. Nd2 {[%emt 0:04:31]} Ne6 {[%emt 0:04:00]} 24. Nf3 {[%emt 0:07:54]} axb3+ {[%emt 0:05:00]} 25. axb3 {[%emt 0:00:10]} Ra2 {[%emt 0:00:49]} 26. Ra1 {[%emt 0:02:25]} Rxa1 {[%emt 0:01:13]} 27. Bxa1 {[%emt 0:00:07]} c6 {[%emt 0:04:58]} 28. Re1 {[%emt 0:04:26]} h5 {[%emt 0:03:19]} 29. Bc3 {[%emt 0:03:34]} Rb8 {[%emt 0:01:44]} 30. Qd2 {[%emt 0:04:38]} Rd8 {[%emt 0:02:10]} 31. Qe3 {[%emt 0:02:39]} Qd7 {[%emt 0:00:07]} 32. Ba5 {[%emt 0:00:48]} Nd4+ {[%emt 0:01:23]} 33. Kb2 {[%emt 0:00:53]} Ra8 {[%emt 0:02:49]} 34. Bb6 {[%emt 0:00:37]} Nxf3 {[%emt 0:05:44]} 35. gxf3 {[%emt 0:00:24]} Bxe5+ {[%emt 0:00:40]} 36. Qxe5 {[%emt 0:00:57]} Qd2+ {[%emt 0:00:02]} 37. Kb1 {[%emt 0:00:15]} Ra3 {[%emt 0:05:12]} 38. Qe3 {[%emt 0:01:15]} Qa2+ {[%emt 0:00:53]} 39. Kc1 {[%emt 0:00:06]} Rxb3 {[%emt 0:01:14]} 40. Qe8+ {[%emt 0:00:00]} Kg7 {[%emt 0:00:00]} 41. Qe5+ {[%emt 0:06:10]} Kh7 {[%emt 0:00:16]} 42. Qe4 {[%emt 0:02:40]} Qb2+ {[%emt 0:01:11]} 43. Kd1 {[%emt 0:00:06]} Rc3 {[%emt 0:00:32]} 0-1